fUST/lending_fUST_20240109
["ID","MTS","AMOUNT","RATE_DAILY","PERIOD"]
[310883287,1704768648988,-500.0,0.00036438,2]
[310883288,1704768648996,-1252.35,0.00036438,2]
[310883289,1704768649006,-500.0,0.00036438,2]
[310883290,1704768649015,-553.1922697,0.00036438,2]
[310883291,1704768649023,-500.0,0.00036438,2]
[310883292,1704768649032,-500.0,0.00036438,2]
[310883293,1704768649041,-500.0,0.00036438,2]
[310883294,1704768649051,-500.0,0.00036438,2]
[310883295,1704768649154,-500.0,0.00036438,2]
[310883296,1704768649163,-500.0,0.00036438,2]
[310883297,1704768649172,-3214.85,0.00036438,2]
[310883298,1704768649181,-500.0,0.00036438,2]
[310883299,1704768649190,-500.0,0.00036438,2]
[310883300,1704768649199,-500.0,0.00036438,2]
[310883301,1704768649208,-770.26,0.00036438,2]
[310883302,1704768649216,-500.0,0.00036438,2]
[310883303,1704768649225,-500.0,0.00036438,2]
[310883304,1704768649236,-183.76716749,0.00036438,2]
[310883305,1704768649245,-500.0,0.00036438,2]
[310883306,1704768649254,-500.0,0.00036438,2]
[310883307,1704768649264,-586.78317092,0.00036438,2]
[310883308,1704768649273,-500.0,0.00036438,2]
[310883309,1704768649282,-500.0,0.00036438,2]
[310883310,1704768649291,-508.68457915,0.00036438,2]
[310883311,1704768649300,-1758.55,0.00036438,2]
[310883312,1704768649309,-500.0,0.00036438,2]
[310883313,1704768649318,-500.0,0.00036438,2]
[310883314,1704768649327,-1406.21,0.00036438,2]
[310883315,1704768649335,-570.87462856,0.00036438,2]
[310883316,1704768649344,-500.0,0.00036438,2]
[310883317,1704768649353,-217.11879481,0.00036438,2]
[310883318,1704768649362,-500.0,0.00036438,2]
[310883319,1704768649372,-609.81,0.00036438,2]
[310883320,1704768649381,-500.0,0.00036438,2]
[310883321,1704768649390,-500.0,0.00036438,2]
[310883322,1704768649399,-500.00003679,0.00036438,2]
[310883323,1704768649409,-500.0,0.00036438,2]
[310883324,1704768649418,-500.0,0.00036438,2]
[310883325,1704768649427,-500.0,0.00036438,2]
[310883326,1704768649437,-500.0,0.00036438,2]
[310883327,1704768649446,-357.58884199,0.00036438,2]
[310883328,1704768649456,-1106.28,0.00036438,2]
[310883329,1704768649465,-1176.18,0.00036438,2]
[310883330,1704768649475,-500.0,0.00036438,2]
[310883331,1704768649484,-500.0,0.00036438,2]
[310883332,1704768649493,-500.0,0.00036438,2]
[310883333,1704768649502,-500.0,0.00036438,2]
[310883334,1704768649511,-500.0,0.00036438,2]
[310883335,1704768649521,-500.0,0.00036438,2]
[310883336,1704768649530,-500.0,0.00036438,2]
[310883337,1704768649539,-500.0,0.00036438,2]
[310883338,1704768649548,-500.0,0.00036438,2]
[310883339,1704768649557,-500.0,0.00036438,2]
[310883340,1704768649567,-500.0,0.00036438,2]
[310883341,1704768649576,-853.36,0.00036438,2]
[310883342,1704768649585,-500.0,0.00036438,2]
[310883343,1704768649595,-1163.46,0.00036438,2]
[310883344,1704768649603,-500.0,0.00036438,2]
[310883345,1704768649612,-2401.08,0.00036438,2]
[310883346,1704768649621,-5371.74,0.00036438,2]
[310883347,1704768649631,-500.0,0.00036438,2]
[310883348,1704768649640,-500.0,0.00036438,2]
[310883349,1704768649649,-500.0,0.00036438,2]
[310883350,1704768649658,-500.0,0.00036438,2]
[310883351,1704768649668,-2790.05,0.00036438,2]
[310883352,1704768649676,-500.0,0.00036438,2]
[310883353,1704768649686,-972.77,0.00036438,2]
[310883354,1704768649696,-797.74,0.00036438,2]
[310883355,1704768649705,-1316.75,0.00036438,2]
[310883356,1704768649714,-500.0,0.00036438,2]
[310883357,1704768649724,-500.0,0.00036438,2]
[310883358,1704768649733,-674.79,0.00036438,2]
[310883359,1704768649742,-2007.13,0.00036438,2]
[310883360,1704768649751,-500.0,0.00036438,2]
[310883361,1704768649760,-500.0,0.00036438,2]
[310883362,1704768649770,-500.0,0.00036438,2]
[310883363,1704768649779,-500.0,0.00036438,2]
[310883364,1704768649788,-1370.36,0.00036438,2]
[310883365,1704768649797,-500.0,0.00036438,2]
[310883366,1704768649807,-500.0,0.00036438,2]
[310883367,1704768649819,-500.0,0.00036438,2]
[310883368,1704768649829,-504.59243236,0.00036438,2]
[310883369,1704768649838,-4716.40094759,0.00036438,2]
[310883457,1704769832413,-154.90705577,0.00020452,2]
[310883458,1704769832423,-154.90705577,0.00020453,2]
[310883459,1704769832432,-177.645867,0.0002046,2]
[310883460,1704769832444,-38.29959852,0.00020974,2]
[310883478,1704769838543,-3346.81384238,0.00020974,2]
[310883479,1704769838552,-310.62249359,0.00020975,2]
[310883480,1704769838564,-2173.97454275,0.00020975,2]
[310883481,1704769838573,-3809.60789692,0.00021,2]
[310883482,1704769838582,-24900.0,0.00021703,2]
[310883483,1704769838592,-166.666666,0.00021918,2]
[310883484,1704769838600,-8600.64481078,0.00022221,2]
[310883485,1704769838610,-166.666666,0.00022431,2]
[310883486,1704769838619,-166.666666,0.00022944,2]
[310883487,1704769838629,-2092.57766549,0.00023,2]
[310883488,1704769838638,-166.666666,0.00023456,2]
[310883489,1704769838647,-166.666666,0.00023969,2]
[310883490,1704769838657,-19465.98119445,0.00023998,2]
[310883491,1704769838666,-783.16983902,0.00024,2]
[310883492,1704769838811,-166.666666,0.00024482,2]
[310883493,1704769838822,-156.2988852,0.000249,2]
[310883494,1704769838831,-739.11283261,0.00025,2]
[310883495,1704769838841,-9014.75581835,0.00025,2]
[310883496,1704769838850,-999.54186873,0.00025,2]
[310883497,1704769838860,-4709.99124251,0.00025,2]
[310883498,1704769838869,-3000.0,0.00025898,2]
[310883499,1704769838879,-525.7750246,0.00026,2]
[310883500,1704769838888,-978.88032498,0.00028998,2]
[310883501,1704769838897,-1982.4602042,0.00029,2]
[310883502,1704769838907,-230.5019379,0.00029587,5]
[310883503,1704769838916,-3188.8,0.00029807,3]
[310883504,1704769838925,-2657.33,0.00029807,3]
[310883505,1704769838934,-2214.44,0.00029807,3]
[310883506,1704769838944,-629.07861683,0.00029816,2]
[310883507,1704769838954,-183.72738521,0.00029816,2]
[310883508,1704769838963,-453.61132866,0.00029816,2]
[310883509,1704769838972,-239.7348857,0.00029816,2]
[310883510,1704769838982,-436.11045957,0.00029816,2]
[310883511,1704769838991,-19360.61298343,0.00029817,3]
[310883512,1704769839000,-35319.10681384,0.00029817,4]
[310883513,1704769839009,-8808.552243,0.00029817,3]
[310883514,1704769839018,-834.89045573,0.00029817,3]
[310883515,1704769839027,-3080.30416313,0.00032594,4]
[310883516,1704769839036,-432.97391986,0.00032721,4]
[310883517,1704769839046,-157.03208602,0.00032875,4]
[310883518,1704769839055,-155.10586792,0.00032875,4]
[310883519,1704769839064,-261.20103296,0.00032875,4]
[310883520,1704769839073,-640.55094873,0.00032875,4]
[310883521,1704769839083,-230.95656664,0.00032876,4]
[310883522,1704769839094,-309.33555105,0.00032876,4]
[310883523,1704769839128,-15784.07351249,0.00032876,4]
[310883524,1704769839137,-1000.0,0.00034,7]
[310883525,1704769839147,-2573.18746204,0.00034259,2]
[310883526,1704769839157,-1487.278554,0.00034521,2]
[310883527,1704769839168,-5000.0,0.00034596,7]
[310883528,1704769839178,-5000.0,0.00034602,7]
[310883529,1704769839189,-154.90705577,0.000349,2]
[310883530,1704769839200,-300.0,0.000349,17]
[310883531,1704769839210,-165.79893511,0.00034999,4]
[310883532,1704769839220,-186.90448267,0.00034999,7]
[310883533,1704769839230,-471.80896262,0.00034999,7]
[310883534,1704769839242,-272.16679719,0.00034999,7]
[310883535,1704769839252,-1000.0,0.00035,2]
[310883536,1704769839262,-388.71284166,0.00035,4]
[310883537,1704769839272,-332.52969855,0.00035,4]
[310883538,1704769839282,-7803.1787706,0.00035,4]
[310883539,1704769839292,-325.82581262,0.00035,2]
[310883540,1704769839304,-5495.13307355,0.00035,4]
[310883564,1704769843420,-1636.04830809,0.0002222,2]
[310883585,1704769846846,-899.06815908,0.0002222,2]
[310883633,1704771032554,-3385.1134409,0.00022206,2]
[310883635,1704771032564,-3927.64829251,0.00022207,2]
[310883637,1704771032574,-300.0,0.0002222,2]
[310883639,1704771032583,-2079.14548292,0.0002222,2]
[310883642,1704771032593,-200.0,0.0002222,2]
[310883643,1704771032602,-1821.42144287,0.0002222,2]
[310883645,1704771032611,-5210.03643091,0.0002222,2]
[310883647,1704771032621,-9918.08132345,0.00023,2]
[310883649,1704771032630,-209.18726648,0.00023585,2]
[310883651,1704771032639,-282.5171909,0.00023685,2]
[310883653,1704771032648,-783.16983902,0.00024999,2]
[310883655,1704771032657,-4709.99124251,0.00025,2]
[310883657,1704771032666,-613.86507578,0.0002517,2]
[310883659,1704771032675,-166.666666,0.00025171,2]
[310883661,1704771032685,-24900.0,0.00025471,2]
[310883663,1704771032694,-200.0,0.00025479,2]
[310883665,1704771032703,-166.666666,0.00025857,2]
[310883667,1704771032712,-978.88032498,0.000259,2]
[310883668,1704771032721,-217.801297,0.00026055,2]
[310883670,1704771032731,-166.666666,0.00026544,2]
[310883673,1704771032740,-166.666666,0.0002723,2]
[310883674,1704771032749,-166.666666,0.00027916,2]
[310883676,1704771032758,-166.666666,0.00028602,2]
[310883677,1704771032768,-1845.37,0.00029908,3]
[310883679,1704771032779,-1537.81,0.00029908,3]
[310883681,1704771032790,-14333.05937088,0.00029918,4]
[310883690,1704771038742,-11559.23367893,0.00029918,4]
[310883691,1704771038751,-4840.15324586,0.00029934,3]
[310883692,1704771038762,-1683.43782802,0.00029934,3]
[310883693,1704771038772,-1637.96408972,0.00031,4]
[310883694,1704771038783,-624.99524906,0.00031988,2]
[310883695,1704771038793,-1715.45830803,0.00032496,2]
[310883696,1704771038802,-177.0741008,0.0003286,2]
[310883697,1704771038811,-154.90705577,0.00033614,4]
[310883698,1704771038821,-500.0,0.00034,7]
[310883699,1704771038830,-1000.0,0.00034269,7]
[310883700,1704771038839,-5000.0,0.0003427,7]
[310883701,1704771038849,-901.85472152,0.000343,4]
[310883702,1704771038858,-301.78455933,0.00034301,4]
[310883703,1704771038868,-448.29451266,0.00034301,2]
[310883704,1704771038877,-500.00000001,0.00034301,2]
[310883705,1704771038886,-471.80896263,0.00034301,2]
[310883706,1704771038895,-50000.0,0.00034302,7]
[310883707,1704771038904,-1378.688168,0.00034521,2]
[310883708,1704771038914,-2000.0,0.000349,2]
[310883709,1704771038924,-154.90705577,0.000349,2]
[310883710,1704771038937,-44753.00681059,0.000349,2]
[310883711,1704771038946,-2000.0,0.0003491,2]
[310883712,1704771038955,-2000.0,0.0003492,2]
[310883713,1704771038965,-2000.0,0.0003493,2]
[310883714,1704771038975,-2000.0,0.0003494,2]
[310883715,1704771038984,-2000.0,0.0003495,2]
[310883716,1704771038993,-2000.0,0.0003496,2]
[310883717,1704771039003,-2740.923886,0.0003497,2]
[310883718,1704771039013,-192.12621971,0.00034998,7]
[310883719,1704771039022,-272.90141687,0.00034998,4]
[310883720,1704771039033,-522.97667745,0.00034998,4]
[310883721,1704771039042,-2096.06404926,0.00034998,4]
[310883722,1704771039052,-1143.62412111,0.00034998,2]
[310883723,1704771039061,-154.90705577,0.00034998,4]
[310883724,1704771039070,-1384.38039422,0.00034998,4]
[310883725,1704771039079,-154.90705577,0.00034998,2]
[310883726,1704771039088,-880.89337746,0.00034999,2]
[310883727,1704771039099,-156.36978952,0.00034999,4]
[310883728,1704771039109,-3000.0,0.00034999,2]
[310883729,1704771039119,-2981.69777702,0.00034999,2]
[310883730,1704771039129,-957.82699879,0.00035,4]
[310883731,1704771039139,-72092.255177,0.00035,2]
[310883732,1704771039149,-388.71284166,0.00035,4]
[310883733,1704771039158,-332.52969855,0.00035,4]
[310883734,1704771039167,-7803.1787706,0.00035,4]
[310883735,1704771039177,-500.0,0.00035,7]
[310883736,1704771039187,-955.82966935,0.00035,7]
[310883737,1704771039197,-155.0,0.00035164,2]
[310883738,1704771039206,-301.0,0.00035196,2]
[310883739,1704771039216,-3878.32674362,0.000352,3]
[310883740,1704771039225,-409.0,0.00035452,2]
[310883741,1704771039234,-1618.62626674,0.00035614,4]
[310883742,1704771039244,-154.90705577,0.00035614,4]
[310883743,1704771039253,-283.37380432,0.00035614,4]
[310883744,1704771039263,-772.94490574,0.00035614,14]
[310883745,1704771039272,-6566.10664233,0.00035614,4]
[310883746,1704771039283,-208.00198312,0.00035614,2]
[310883747,1704771039292,-155.4628525,0.00035615,4]
[310883748,1704771039305,-539.41790632,0.00035615,7]
[310883749,1704771039314,-313.39850654,0.00035615,4]
[310883750,1704771039323,-457.54653795,0.00035615,2]
[310883751,1704771039332,-231.2255281,0.00035616,3]
[310883752,1704771039341,-507.33481671,0.00035616,2]
[310883753,1704771039351,-500.0,0.00035616,2]
[310883754,1704771039360,-500.0,0.00035616,2]
[310883755,1704771039370,-500.0,0.00035616,2]
[310883756,1704771039379,-500.0,0.00035616,2]
[310883757,1704771039388,-563.62061951,0.00035616,2]
[310883758,1704771039397,-500.0,0.00035616,2]
[310883759,1704771039407,-500.0,0.00035616,2]
[310883760,1704771039416,-500.0,0.00035616,2]
[310883761,1704771039426,-1118.41,0.00035616,2]
[310883762,1704771039435,-506.88634979,0.00035616,2]
[310883763,1704771039444,-500.0,0.00035616,2]
[310883764,1704771039453,-500.0,0.00035616,2]
[310883765,1704771039463,-504.17246542,0.00035616,2]
[310883766,1704771039472,-523.96387343,0.00035616,2]
[310883767,1704771039481,-500.0,0.00035616,2]
[310883768,1704771039490,-501.10069018,0.00035616,2]
[310883769,1704771039499,-532.42179893,0.00035616,2]
[310883770,1704771039509,-500.0,0.00035616,2]
[310883771,1704771039517,-502.03444066,0.00035616,2]
[310883772,1704771039528,-567.99462303,0.00035616,2]
[310883773,1704771039537,-500.0,0.00035616,2]
[310883774,1704771039546,-500.0,0.00035616,2]
[310883775,1704771039554,-500.0,0.00035616,2]
[310883776,1704771039564,-500.0,0.00035616,2]
[310883777,1704771039573,-193.63327634,0.00035616,2]
[310883778,1704771039582,-500.0,0.00035616,2]
[310883779,1704771039591,-500.0,0.00035616,2]
[310883780,1704771039600,-500.0,0.00035616,2]
[310883781,1704771039609,-500.0,0.00035616,2]
[310883782,1704771039618,-500.0,0.00035616,2]
[310883783,1704771039627,-507.21352278,0.00035616,2]
[310883784,1704771039636,-500.0,0.00035616,2]
[310883785,1704771039646,-500.0,0.00035616,2]
[310883786,1704771039655,-501.93939371,0.00035616,2]
[310883787,1704771039664,-598.01736751,0.00035616,2]
[310883788,1704771039674,-500.0,0.00035616,2]
[310883789,1704771039683,-932.24,0.00035616,2]
[310883790,1704771039692,-500.0,0.00035616,2]
[310883791,1704771039701,-500.0,0.00035616,2]
[310883792,1704771039710,-500.0,0.00035616,2]
[310883793,1704771039719,-301.46056639,0.00035616,2]
[310883794,1704771039728,-435.80051183,0.00035616,2]
[310883795,1704771039737,-261.85210161,0.00035616,2]
[310883796,1704771039746,-1313.26,0.00035616,2]
[310883797,1704771039755,-500.0,0.00035616,2]
[310883798,1704771039763,-500.0,0.00035616,2]
[310883799,1704771039773,-500.0,0.00035616,2]
[310883800,1704771039783,-500.0,0.00035616,2]
[310883801,1704771039793,-313.45672776,0.00035616,2]
[310883802,1704771039803,-500.0,0.00035616,2]
[310883803,1704771039813,-500.0,0.00035616,2]
[310883804,1704771039823,-155.46399435,0.00035616,2]
[310883805,1704771039832,-500.0,0.00035616,2]
[310883806,1704771039842,-564.3,0.00035616,2]
[310883807,1704771039851,-500.0,0.00035616,2]
[310883808,1704771039860,-500.0,0.00035616,2]
[310883809,1704771039870,-573.64327184,0.00035616,2]
[310883810,1704771039879,-500.0,0.00035616,2]
[310883811,1704771039889,-500.0,0.00035616,2]
[310883812,1704771039898,-204.85076196,0.00035616,2]
[310883813,1704771039907,-500.0,0.00035616,2]
[310883814,1704771039917,-500.0,0.00035616,2]
[310883815,1704771039926,-500.0,0.00035616,2]
[310883816,1704771039936,-500.0,0.00035616,2]
[310883817,1704771039945,-620.01,0.00035616,2]
[310883818,1704771039956,-544.05267978,0.00035616,2]
[310883819,1704771039966,-500.0,0.00035616,2]
[310883820,1704771039975,-408.19560435,0.00035616,2]
[310883821,1704771039985,-500.0,0.00035616,2]
[310883822,1704771039994,-526.27006981,0.00035616,2]
[310883823,1704771040004,-518.76104554,0.00035616,2]
[310883824,1704771040013,-500.0,0.00035616,2]
[310883826,1704771040022,-500.0,0.00035616,2]
[310883827,1704771040034,-514.68645704,0.00035616,2]
[310883828,1704771040042,-500.0,0.00035616,2]
[310883829,1704771040051,-500.0,0.00035616,2]
[310883830,1704771040060,-500.0,0.00035616,2]
[310883831,1704771040070,-500.0,0.00035616,2]
[310883832,1704771040080,-500.0,0.00035616,2]
[310883833,1704771040089,-225.26669849,0.00035616,2]
[310883834,1704771040098,-183.74233471,0.00035616,2]
[310883835,1704771040107,-500.0,0.00035616,2]
[310883836,1704771040117,-500.0,0.00035616,2]
[310883837,1704771040126,-500.0,0.00035616,2]
[310883838,1704771040135,-515.07091795,0.00035616,2]
[310883839,1704771040144,-501.94083797,0.00035616,2]
[310883840,1704771040153,-500.0,0.00035616,2]
[310883841,1704771040163,-500.0,0.00035616,2]
[310883842,1704771040172,-506.33631279,0.00035616,2]
[310883843,1704771040182,-500.0,0.00035616,2]
[310883844,1704771040191,-500.0,0.00035616,2]
[310883845,1704771040201,-500.0,0.00035616,2]
[310883846,1704771040210,-500.41320758,0.00035616,2]
[310883847,1704771040219,-3080.9,0.00035616,2]
[310883848,1704771040228,-205.37417053,0.00035616,2]
[310883849,1704771040237,-504.43281686,0.00035616,2]
[310883850,1704771040246,-8490.78985431,0.00035616,10]
[310883851,1704771040255,-500.0,0.00035616,2]
[310883852,1704771040264,-502.3919799,0.00035616,2]
[310883853,1704771040274,-500.0,0.00035616,2]
[310883854,1704771040284,-500.0,0.00035616,2]
[310883855,1704771040294,-500.0,0.00035616,2]
[310883856,1704771040303,-500.0,0.00035616,2]
[310883857,1704771040312,-500.0,0.00035616,2]
[310883858,1704771040321,-575.36,0.00035616,2]
[310883859,1704771040331,-500.0,0.00035616,2]
[310883860,1704771040340,-500.0,0.00035616,2]
[310883861,1704771040349,-500.0,0.00035616,2]
[310883862,1704771040358,-500.0,0.00035616,2]
[310883863,1704771040367,-500.0,0.00035616,2]
[310883864,1704771040377,-500.0,0.00035616,2]
[310883865,1704771040387,-500.53498006,0.00035616,2]
[310883866,1704771040396,-500.0,0.00035616,2]
[310883867,1704771040405,-773.85,0.00035616,2]
[310883868,1704771040415,-500.0,0.00035616,2]
[310883869,1704771040425,-500.0,0.00035616,2]
[310883870,1704771040435,-1685.28,0.00035616,2]
[310883871,1704771040444,-500.0,0.00035616,2]
[310883872,1704771040453,-1109.96,0.00035616,2]
[310883873,1704771040462,-1109.96,0.00035616,2]
[310883874,1704771040471,-1109.96,0.00035616,2]
[310883875,1704771040480,-1109.96,0.00035616,2]
[310883876,1704771040489,-1109.96,0.00035616,2]
[310883877,1704771040610,-500.0,0.00035616,2]
[310883878,1704771040620,-1109.96,0.00035616,2]
[310883879,1704771040629,-500.0,0.00035616,2]
[310883880,1704771040639,-1109.96,0.00035616,2]
[310883881,1704771040647,-1109.96,0.00035616,2]
[310883882,1704771040657,-1109.96,0.00035616,2]
[310883883,1704771040666,-1109.96,0.00035616,2]
[310883884,1704771040676,-1109.96,0.00035616,2]
[310883886,1704771040685,-500.0,0.00035616,2]
[310883888,1704771040694,-513.51702195,0.00035616,2]
[310883890,1704771040703,-500.0,0.00035616,2]
[310883892,1704771040713,-500.0,0.00035616,2]
[310883894,1704771040722,-500.0,0.00035616,2]
[310883896,1704771040731,-500.0,0.00035616,2]
[310883898,1704771040740,-500.0,0.00035616,2]
[310883899,1704771040749,-500.0,0.00035616,2]
[310883900,1704771040759,-532.93123084,0.00035616,2]
[310883901,1704771040768,-500.0,0.00035616,2]
[310883903,1704771040778,-500.0,0.00035616,2]
[310883905,1704771040787,-500.0,0.00035616,2]
[310883908,1704771040796,-500.0,0.00035616,2]
[310883910,1704771040805,-500.0,0.00035616,2]
[310883912,1704771040815,-500.0,0.00035616,2]
[310883914,1704771040825,-500.0,0.00035616,2]
[310883916,1704771040834,-500.0,0.00035616,2]
[310883918,1704771040844,-500.0,0.00035616,2]
[310883921,1704771040853,-1533.09,0.00035616,2]
[310883923,1704771040863,-546.68225328,0.00035616,2]
[310883926,1704771040872,-500.0,0.00035616,2]
[310883928,1704771040881,-202.06189614,0.00035616,2]
[310883930,1704771040890,-500.0,0.00035616,2]
[310883932,1704771040899,-500.0,0.00035616,2]
[310883934,1704771040907,-500.0,0.00035616,2]
[310883936,1704771040916,-500.0,0.00035616,2]
[310883938,1704771040926,-500.0,0.00035616,2]
[310883940,1704771040938,-572.65,0.00035616,2]
[310883942,1704771040948,-500.0,0.00035616,2]
[310883944,1704771040956,-500.0,0.00035616,2]
[310883946,1704771040965,-1306.8,0.00035616,2]
[310883948,1704771040975,-210.69454058,0.00035616,2]
[310883950,1704771040984,-500.0,0.00035616,2]
[310883952,1704771040993,-500.0,0.00035616,2]
[310883954,1704771041002,-500.0,0.00035616,2]
[310883956,1704771041013,-500.0,0.00035616,2]
[310883958,1704771041022,-500.0,0.00035616,2]
[310883960,1704771041032,-528.85115865,0.00035616,2]
[310883962,1704771041041,-226.27349157,0.00035616,2]
[310883964,1704771041051,-500.0,0.00035616,2]
[310883966,1704771041060,-226.74535197,0.00035616,2]
[310883968,1704771041069,-500.0,0.00035616,2]
[310883970,1704771041078,-1148.01,0.00035616,2]
[310883971,1704771041087,-502.59317857,0.00035616,2]
[310883973,1704771041095,-517.48025698,0.00035616,2]
[310883975,1704771041105,-500.0,0.00035616,2]
[310883977,1704771041114,-215.0521032,0.00035616,2]
[310883979,1704771041123,-500.0,0.00035616,2]
[310883981,1704771041131,-500.0,0.00035616,2]
[310883983,1704771041140,-314.76144495,0.00035616,2]
[310883985,1704771041149,-502.1875027,0.00035616,2]
[310883987,1704771041158,-570.54039986,0.00035616,2]
[310883989,1704771041167,-500.0,0.00035616,2]
[310883991,1704771041176,-500.0,0.00035616,2]
[310883993,1704771041184,-506.9921166,0.00035616,2]
[310883995,1704771041192,-500.0,0.00035616,2]
[310883997,1704771041201,-904.65,0.00035616,2]
[310883999,1704771041209,-503.83782497,0.00035616,2]
[310884001,1704771041218,-500.0,0.00035616,2]
[310884003,1704771041227,-500.0,0.00035616,2]
[310884005,1704771041236,-500.0,0.00035616,2]
[310884007,1704771041244,-500.0,0.00035616,2]
[310884009,1704771041253,-500.0,0.00035616,2]
[310884011,1704771041262,-500.0,0.00035616,2]
[310884013,1704771041270,-2401.08,0.00035616,2]
[310884015,1704771041279,-232.68741591,0.00035616,2]
[310884016,1704771041287,-1156.65,0.00035616,2]
[310884017,1704771041296,-500.0,0.00035616,2]
[310884018,1704771041305,-501.30944733,0.00035616,2]
[310884019,1704771041313,-5661.72,0.00035616,2]
[310884020,1704771041321,-500.0,0.00035616,2]
[310884021,1704771041330,-1494.85,0.00035616,2]
[310884022,1704771041339,-806.17,0.00035616,2]
[310884023,1704771041348,-509.18906522,0.00035616,2]
[310884024,1704771041356,-167.69414103,0.00035616,2]
[310884025,1704771041365,-505.11944561,0.00035616,2]
[310884026,1704771041373,-500.0,0.00035616,2]
[310884027,1704771041382,-674.79,0.00035616,2]
[310884028,1704771041391,-2187.6,0.00035616,2]
[310884029,1704771041400,-500.0,0.00035616,2]
[310884030,1704771041409,-500.0,0.00035616,2]
[310884031,1704771041418,-500.0,0.00035616,2]
[310884032,1704771041427,-500.0,0.00035616,2]
[310884033,1704771041436,-500.0,0.00035616,2]
[310884034,1704771041444,-500.0,0.00035616,2]
[310884035,1704771041453,-500.0,0.00035616,2]
[310884036,1704771041462,-381.12834279,0.00035616,2]
[310884037,1704771041470,-539.46030145,0.00035616,2]
[310884038,1704771041479,-500.0,0.00035616,2]
[310884039,1704771041487,-1316.75,0.00035616,2]
[310884040,1704771041497,-517.86667267,0.00035616,2]
[310884041,1704771041506,-513.49699543,0.00035616,2]
[310884042,1704771041516,-504.13506503,0.00035616,2]
[310884043,1704771041524,-500.0,0.00035616,2]
[310884044,1704771041534,-504.50490117,0.00035616,2]
[310884045,1704771041543,-500.0,0.00035616,2]
[310884046,1704771041552,-514.27,0.00035616,2]
[310884047,1704771041562,-500.0,0.00035616,2]
[310884048,1704771041571,-500.0,0.00035616,2]
[310884049,1704771041580,-5713.43,0.00035616,2]
[310884050,1704771041589,-303.78797855,0.00035616,2]
[310884051,1704771041598,-500.0,0.00035616,2]
[310884052,1704771041608,-500.0,0.00035616,2]
[310884053,1704771041620,-500.0,0.00035616,2]
[310884054,1704771041629,-503.10852241,0.00035616,2]
[310884055,1704771041638,-500.0,0.00035616,2]
[310884056,1704771041647,-501.71932076,0.00035616,2]
[310884057,1704771041656,-500.0,0.00035616,2]
[310884058,1704771041666,-517.52671074,0.00035616,2]
[310884059,1704771041675,-46103.08,0.00035616,2]
[310884060,1704771041684,-500.0,0.00035616,2]
[310884061,1704771041693,-503.57169132,0.00035616,2]
[310884063,1704771041702,-500.0,0.00035616,2]
[310884065,1704771041711,-500.0,0.00035616,2]
[310884066,1704771041722,-500.0,0.00035616,2]
[310884068,1704771041732,-176.84588182,0.00035616,2]
[310884069,1704771041742,-506.80683171,0.00035616,2]
[310884071,1704771041751,-14039.17,0.00035616,2]
[310884073,1704771041761,-500.0,0.00035616,2]
[310884074,1704771041769,-500.85991051,0.00035616,2]
[310884075,1704771041780,-1611.24,0.00035616,2]
[310884076,1704771041788,-502.59833004,0.00035616,2]
[310884077,1704771041798,-1000.0,0.00035616,2]
[310884078,1704771041806,-500.0,0.00035616,2]
[310884079,1704771041816,-500.0,0.00035616,5]
[310884080,1704771041825,-1961.83,0.00035616,2]
[310884081,1704771041835,-567.1617221,0.00035616,2]
[310884082,1704771041844,-500.80230841,0.00035616,2]